Cogmind - Beta 13 @@@ ROGUE MODE // 2024.07.05 @ 22:38:59 Player: Duduxx Result: Destroyed by Y-54 Guardian with Gatling Laser Performance ------------- Evolutions (3) 1500 Regions Visited (4) 800 Robots Destroyed (89) 445 Value Destroyed (2870) 2870 Prototype IDs (1) 20 Alien Tech Used (0) 0 Bonus (0) 0 TOTAL SCORE: 5635 Bonus ------- None Cogmind --------- Core Integrity 0/700 Matter 112/300 Energy 80/100 System Corruption 2% Temperature Cool (45) Movement Core (350) Ox6 Location -7/Factory Parts ------- > --- POWER (2) -------- (None) > --- PROPULSION (3) --- (None) > --- UTILITY (6) ------ Large Storage Unit Terrain Scan Processor > --- WEAPON (2) ------- (None) > --- INVENTORY (15) --- Terrain Scan Processor Advanced Terrain Scan Processor System Shield Minigun Assault Cannon Rocket Launcher Rocket Launcher Remote Datajack Peak State ------------ > --- POWER ------------ Light Ion Engine Micro Nuclear Core > --- PROPULSION ------- Improved Treads Advanced Treads Carbon-fiber Leg > --- UTILITY ---------- Large Storage Unit Improved Terrain Scanner Terrain Scan Processor Improved Targeting Computer Hardened Light Armor Plating Improved Medium Armor Plating > --- WEAPON ----------- Gauss Rifle Advanced Assault Cannon > --- INVENTORY -------- Terrain Scan Processor Advanced Terrain Scan Processor Particle Charger Improved Light Armor Plating Hardlight Generator System Shield Lightning Gun Improved Medium Laser Minigun Assault Cannon Rocket Launcher Rocket Launcher Rocket Launcher Remote Datajack [Rating: 39] Favorites ----------- Power Light Nuclear Core Engine Improved Ion Engine Power Core Light Nuclear Core Propulsion Armored Treads Treads Armored Treads Leg Aluminum Leg Hover Unit Improved Hover Unit Utility Large Storage Unit Device Improved Terrain Scanner Storage Large Storage Unit Processor Improved Targeting Computer Protection Hardened Light Armor Plating Weapon Light Assault Rifle Energy Gun Beam Rifle Ballistic Gun Light Assault Rifle Ballistic Cannon Advanced Assault Cannon Launcher Grenade Launcher Build | -11 -10 -9 -8 -7 ------- Run | Yrd Mat Mat Mat Fac Slots Evolved 6 | . . 2 2 2 Power 1 | . . . . 1 Propulsion 1 | . . . 1 . Utility 4 | . . 2 1 1 Weapon . | . . . . . Parts Attached 77 | 6 7 19 18 27 Power 11 | 1 2 1 2 5 Engine 5 | 1 2 1 . 1 Core 6 | . . . 2 4 Reactor . | . . . . . Propulsion 17 | 2 1 5 5 4 Treads 12 | 2 1 2 5 2 Leg 4 | . . 3 . 1 Wheel . | . . . . . Hover 1 | . . . . 1 Flight . | . . . . . Utility 29 | 1 3 11 6 8 Device 10 | . . 3 2 5 Storage 6 | 1 2 3 . . Processor 3 | . 1 1 . 1 Hackware . | . . . . . Protection 10 | . . 4 4 2 Artifact . | . . . . . Weapon 20 | 2 1 2 5 10 Energy Gun 4 | . . 1 1 2 Energy Cannon . | . . . . . Ballistic Gun 8 | 2 1 1 2 2 Ballistic Cannon 2 | . . . . 2 Launcher 6 | . . . 2 4 Special Weapon . | . . . . . Impact Weapon . | . . . . . Slashing Weapon . | . . . . . Piercing Weapon . | . . . . . Special Melee Weapon . | . . . . . Unidentified Prototypes 1 | . . . . 1 Parts Lost 46 | . . 7 12 27 Power 8 | . . 1 1 6 Propulsion 11 | . . 2 4 5 Utility 15 | . . 2 4 9 Weapon 12 | . . 2 3 7 Highest Loss Streak 17 | . . 2 3 17 To Critical Strikes . | . . . . . Average Slot Usage (%) 94 | . 94 98 96 89 Engine 6 | . 13 11 . 2 Core 4 | . . . 8 9 Treads 14 | . 27 9 25 13 Leg 6 | . . 12 . 2 Device 5 | . . . 9 10 Storage 10 | . 17 11 9 7 Processor 10 | . 6 10 9 10 Protection 15 | . . 19 15 14 Energy Gun 3 | . . 4 5 . Ballistic Gun 13 | . 27 17 11 6 Ballistic Cannon 1 | . . . . 5 Naked Turns . | . . . . . Heaviest Build 52 | 12 32 45 41 52 Greatest Support 65 | 40 40 40 60 65 Greatest Overweight (x) 13 | . 1 2 . 13 Average Overweight (x) . | . . 1 . 1 Largest Inventory Capacity 15 | 8 15 15 15 15 Average Capacity 14 | 7 14 15 15 15 Most Carried 15 | 4 11 15 15 15 Average Carried 11 | 2 5 13 11 11 Final Capacity 15 | 8 15 15 15 15 Final Carried 15 | 4 10 15 10 8 Class Distribution -------------------- 73% | Mutant 26% | Scavenger-Mutant Dominant Class ---------------- Mutant | -10/Materials Mutant | -9/Materials Mutant | -8/Materials Scavenger-Mutant | -7/Factory Resources | -11 -10 -9 -8 -7 ----------- Run | Yrd Mat Mat Mat Fac Matter Collected 1973 | 255 61 557 371 729 Remotely . | . . . . . Salvage Created 2859 | . 122 1194 704 839 Parts 179 | . 11 82 38 48 Haulers Intercepted . | . . . . . Recyclers Shooed 3 | . . 1 2 . Parts Field Recycled . | . . . . . Retrieved Matter . | . . . . . Parts Self-Destructed . | . . . . . Prevented . | . . . . . Kills | -11 -10 -9 -8 -7 ------- Run | Yrd Mat Mat Mat Fac Combat Hostiles Destroyed 65 | . 4 26 13 22 Guns 38 | . 4 26 6 2 Cannons 13 | . . . . 13 AOE 14 | . . . 7 7 Classes Destroyed 12 | . 3 6 2 1 Worker 8 | . . 1 2 5 Builder 7 | . . 1 3 3 Tunneler 2 | . . 1 . 1 Recycler 2 | . . . 1 1 Operator 1 | . 1 . . . Watcher 4 | . . 2 1 1 Swarmer 7 | . 3 . . 4 Grunt 38 | . 1 20 7 10 Brawler 3 | . . 1 2 . Sentry 10 | . . 5 3 2 Hunter 4 | . . . 1 3 Programmer 3 | . . . . 3 Best Kill Streak 10 | . 4 10 8 7 Combat Bots Only 6 | . 3 6 5 5 Max Kills in Single Turn 3 | . 1 2 3 2 Gunslinging 1 | . . 1 . . Exploded 2 | . . . 2 2 Melee . | . . . . . Uniques/NPCs Destroyed . | . . . . . Combat | -11 -10 -9 -8 -7 -------- Run | Yrd Mat Mat Mat Fac Hostile Shots Fired 900 | . 35 164 174 527 Missed 261 | . 9 51 42 159 Damage Taken 6997 | . 283 1443 1996 3275 Core 1144 | . 62 121 253 708 Absorbed by Shields 616 | . . . . 616 Redirected to Shielding 100 | . . . 37 63 Core Remaining (%) 74 | 100 75 69 54 . Volleys Fired 257 | . 18 97 65 77 Largest 2 | . 2 2 2 2 Hottest 111 | . 40 81 86 111 Shots Fired 475 | . 36 191 109 139 Gun 387 | . 36 191 94 66 Cannon 63 | . . . . 63 Launcher 25 | . . . 15 10 Special . | . . . . . Kinetic 356 | . 36 151 45 124 Thermal 93 | . . 40 49 4 Explosive 20 | . . . 10 10 Electromagnetic 6 | . . . 5 1 Robot Hit Streak 18 | . 6 18 9 12 Robot Miss Streak 4 | . 3 4 4 3 Penetration Max 1 | . . . 1 1 Secondary Targets 7 | . . 5 2 . Max Gunslinging Chain 1 | . . 1 1 . Shots Hit Robots 323 | . 26 130 75 92 Core Hits 178 | . 11 58 46 63 Critical Kills 2 | . . 1 . 1 Critical Parts Destroyed 2 | . . 1 . 1 Critical Strikes 13 | . . 4 2 7 Burn 4 | . . 2 2 . Destroy 4 | . . 2 . 2 Blast 5 | . . . . 5 Melee Attacks . | . . . . . Impact . | . . . . . Slashing . | . . . . . Piercing . | . . . . . Sneak Attacks . | . . . . . Combat Hostiles . | . . . . . Follow-up Attacks . | . . . . . Damage Inflicted 6956 | . 200 1706 1974 3076 Guns 3839 | . 200 1660 1080 899 Cannons 1271 | . . . . 1271 Explosions 1779 | . . . 874 905 Melee . | . . . . . Ramming 67 | . . 46 20 1 Kinetic 4039 | . 200 1223 518 2098 Thermal 1046 | . . 437 562 47 Explosive 1529 | . . . 624 905 Electromagnetic 275 | . . . 250 25 Impact . | . . . . . Slashing . | . . . . . Piercing . | . . . . . Highest Corruption 2 | . . 2 . 2 Average Corruption 1 | . . 2 . 1 Corruption Purged . | . . . . . Corruption Blocked . | . . . . . Effects 37 | . . 22 . 15 Message Errors 13 | . . 6 . 7 Matter Fused 10 | . . 5 . 5 Heat Flow Errors 3 | . . 2 . 1 Energy Discharges 2 | . . 2 . . Parts Fused 1 | . . 1 . . Data Loss (minor) 3 | . . 2 . 1 Misfires 4 | . . 3 . 1 Weapon Failures 1 | . . 1 . . Overload Shots . | . . . . . Overflow Damage 68 | . . . . 68 Projectiles 39 | . . . . 39 Explosions 29 | . . . . 29 Melee . | . . . . . Knockbacks 8 | . . . . 8 Impact . | . . . . . Kinetic 8 | . . . . 8 Secondary . | . . . . . Self-Inflicted Damage 116 | . . . 71 45 Shots 7 | . . . 5 2 Rammed 3 | . . 1 1 1 Targets Rammed 13 | . . 9 2 2 Kicked 9 | . . 8 . 1 Crushed 1 | . . . 1 . Highest Temperature 476 | . 18 476 403 273 Average Temperature 102 | . 11 110 111 87 Received Heat Transfer 2729 | . 81 606 1017 1025 Effects 16 | . . 6 5 5 Shutdowns 1 | . . 1 . . Energy Bleed 4 | . . 3 1 . Interference 10 | . . 1 4 5 Short Circuit 1 | . . 1 . . Siege Activations . | . . . . . Robots Corrupted . | . . . . . Combat Hostiles . | . . . . . Parts Fried 1 | . . . 1 . Impact Corruptions . | . . . . . Robots Melted . | . . . . . Combat Hostiles . | . . . . . Parts Melted 2 | . . . 2 . Heat Transferred 2960 | . . 1258 1591 111 Parts Sabotaged . | . . . . . Parts Stolen . | . . . . . Parts Stripped . | . . . . . Power Chain Reactions 1 | . . . 1 . Alert | -11 -10 -9 -8 -7 ------- Run | Yrd Mat Mat Mat Fac Peak Influence 379 | . 142 251 379 259 Initial 122 | . . 59 105 122 Average 134 | . 104 84 257 151 Maximum Alert Level 1 | . . 1 1 1 Low Security (%) 74 | 100 100 96 13 67 Level 1 25 | . . 3 86 32 Level 2 . | . . . . . Level 3 . | . . . . . Level 4 . | . . . . . Level 5 . | . . . . . High Security . | . . . . . Max Security . | . . . . . Squads Dispatched 22 | . . 7 3 12 Investigation 8 | . . 4 2 2 Extermination 3 | . . . . 3 Reinforcement 7 | . . 3 1 3 Assault . | . . . . . Garrison 4 | . . . . 4 Intercept . | . . . . . Searches Triggered . | . . . . . Construction Impeded 1 | . . . . 1 Haulers Reinforced . | . . . . . Active Scanning Responses . | . . . . . Cargo Convoy Interrupts . | . . . . . Stealth | -11 -10 -9 -8 -7 --------- Run | Yrd Mat Mat Mat Fac Distress Signals 8 | . 1 3 4 . Communications Jammed . | . . . . . Distress Signals . | . . . . . Times Spotted 110 | . 6 44 23 37 Peak Tracking Total 9 | . 4 6 9 6 Tactical Retreats 4 | . 1 1 1 1 Traps | -11 -10 -9 -8 -7 ------- Run | Yrd Mat Mat Mat Fac Traps Triggered 3 | . 1 2 . . Indirectly . | . . . . . Trap Hack Attempts . | . . . . . Triggered . | . . . . . Disarmed . | . . . . . Reprogrammed 4 | . . . 4 . Reused 1 | . . . 1 . Traps Extracted . | . . . . . Installed . | . . . . . Triggered 1 | . . . 1 . Machines | -11 -10 -9 -8 -7 ---------- Run | Yrd Mat Mat Mat Fac Machines Disabled 5 | . . . 1 4 Max in Single Turn 2 | . . . 1 2 Machines Repaired . | . . . . . Machines Dismantled . | . . . . . Machines Sabotaged . | . . . . . Overloaded Fab Kills . | . . . . . Hacking | -11 -10 -9 -8 -7 --------- Run | Yrd Mat Mat Mat Fac Machines Accessed 16 | . 2 5 5 4 Terminals 14 | . 2 4 5 3 Fabricators . | . . . . . Repair Stations . | . . . . . Recycling Units . | . . . . . Scanalyzers 1 | . . 1 . . Garrison Access 1 | . . . . 1 Total Hacks 46 | . 3 12 18 13 Successful 20 | . 1 8 8 3 Failed 26 | . 2 4 10 10 Catastrophic 8 | . . 1 3 4 Database Lockouts . | . . . . . Manual 4 | . 2 . 2 . Terminals 40 | . 3 9 18 10 Fabricators . | . . . . . Repair Stations . | . . . . . Recycling Units . | . . . . . Scanalyzers 3 | . . 3 . . Garrison Access 3 | . . . . 3 Terminal Hacks 18 | . 1 6 8 3 Record 1 | . . . . 1 Open DSF 1 | . . . . 1 Terminal Index 1 | . . 1 . . Alert Level 2 | . . 1 1 . Locate Traps 1 | . . . . 1 Reprogram Traps 1 | . . . 1 . Maintenance Status 1 | . . . 1 . Reinforcement Status 1 | . . . 1 . Assault Status 1 | . . . 1 . Recall Reinforcements 1 | . . . 1 . Hauler Manifests 2 | . . 1 1 . Registered Components 2 | . 1 1 . . Registered Prototypes 1 | . . 1 . . Zone Layout 2 | . . 1 1 . Fabricator Hacks . | . . . . . Repair Station Hacks . | . . . . . Recycling Unit Hacks . | . . . . . Scanalyzer 2 | . . 2 . . Insert Component 1 | . . 1 . . Analyze 1 | . . 1 . . Garrison Access Hacks . | . . . . . Unauthorized Hacks . | . . . . . Terminals . | . . . . . Fabricators . | . . . . . Repair Stations . | . . . . . Recycling Units . | . . . . . Scanalyzers . | . . . . . Garrison Access . | . . . . . Data Cores Recovered 1 | . 1 . . . Used . | . . . . . Hacking Detections 14 | . 1 5 4 4 Full Trace Events 7 | . . 3 2 2 Feedback Events . | . . . . . Feedback Blocked . | . . . . . Robot Schematics Acquired . | . . . . . Robots Built . | . . . . . Authchips . | . . . . . Time . | . . . . . Total Robot Build Rating . | . . . . . Part Schematics Acquired 1 | . . 1 . . Parts Built . | . . . . . Authchips . | . . . . . Time . | . . . . . Total Part Build Rating . | . . . . . Parts Repaired . | . . . . . Time . | . . . . . Parts Recycled . | . . . . . Recycled Matter . | . . . . . Retrieved Matter . | . . . . . Retrieved Components . | . . . . . Parts Scanalyzed 1 | . . 1 . . Part Schematics Acquired 1 | . . 1 . . Parts Damaged . | . . . . . Bothacking | -11 -10 -9 -8 -7 ------------ Run | Yrd Mat Mat Mat Fac Used RIF Installer . | . . . . . Robots Hacked . | . . . . . Non-combat . | . . . . . Combat . | . . . . . Robot Hacks Applied . | . . . . . Relay Couplers Released . | . . . . . Fabnet Peak Effective % . | . . . . . Robots Rewired . | . . . . . Allies Hacked . | . . . . . Hacks Repelled . | . . . . . Allies | -11 -10 -9 -8 -7 -------- Run | Yrd Mat Mat Mat Fac Total Allies . | . . . . . Largest Group . | . . . . . Highest-Rated Group . | . . . . . Highest-Rated Ally . | . . . . . Total Orders . | . . . . . Ally Attacks . | . . . . . Total Damage . | . . . . . Kills . | . . . . . Allies Corrupted . | . . . . . Allies Melted . | . . . . . Intel | -11 -10 -9 -8 -7 ------- Run | Yrd Mat Mat Mat Fac Robot Analysis Total . | . . . . . Derelict Logs Recovered . | . . . . . Drone Launches . | . . . . . Drone Recoveries . | . . . . . Exploration | -11 -10 -9 -8 -7 ------------- Run | Yrd Mat Mat Mat Fac Turns Passed 5033 | 72 347 2109 769 1736 Spaces Moved 1888 | 42 174 731 333 608 Core 12 | 6 . . . 6 Treads 1467 | 36 174 325 333 599 Legs 409 | . . 406 . 3 Wheels . | . . . . . Hover . | . . . . . Flight . | . . . . . Fastest Speed 50 | 50 160 160 160 152 Average Speed 218 | 144 160 243 167 238 Slowest Speed 700 | 160 240 260 170 700 Overloaded Moves . | . . . . . Propulsion Burnouts . | . . . . . Robots Hopped . | . . . . . Cave-ins Triggered . | . . . . . Exploration Rate (%) 26 | 4 38 50 29 13 Regions Visited 4 Branch Regions . Pre-discovered Areas . | . . . . . Known Exits Taken . | . . . . . Unknown Exits Taken 4 | 1 1 1 1 . Scrap Searched . | . . . . . Spaces Dug . | . . . . . Terrain Destroyed 52 | . . . 30 22 Melee . | . . . . . Projectile 3 | . . . 1 2 AOE 49 | . . . 29 20 Terrain Rammed . | . . . . . Walls Destroyed . | . . . . . Machines Disabled . | . . . . . Actions | -11 -10 -9 -8 -7 --------- Run | Yrd Mat Mat Mat Fac Total 2341 | 51 212 893 438 747 Wait 14 | . . 2 . 12 Move 1884 | 41 173 730 332 608 Hop . | . . . . . Pick Up 54 | 4 7 18 10 15 Fast Attach 34 | 6 7 8 6 7 Attach 33 | . . 9 9 15 Detach 13 | . 3 6 2 2 Swap 10 | . . 2 3 5 Drop 29 | . 4 12 9 4 Fire 257 | . 18 97 65 77 Melee . | . . . . . Ram . | . . . . . Kick 9 | . . 8 . 1 Crush 4 | . . 1 2 1 Escape Stasis . | . . . . . Rewire . | . . . . . Trap . | . . . . . Miscellaneous . | . . . . . Route ------- -11/Scrapyard -10/Materials (discovered 2 exits: *Mat / [*Min]) -9/Materials (discovered 2 exits: *Mat x2) -8/Materials -7/Factory History --------- Turn | Location | Event 17 | -11/Scrapyard | Discovered new exit (range 16) 73 | -11/Scrapyard | Entered Materials 183 | -10/Materials | Discovered new exit (range 15) 273 | -10/Materials | Discovered new exit (range 10) 318 | -10/Materials | Build established: Mutant 420 | -10/Materials | Entered another Materials area 420 | -9/Materials | Evolved 2 slots: Utility x2 599 | -9/Materials | Discovered new exit (range 16) 2504 | -9/Materials | Discovered new exit (range 11) 2529 | -9/Materials | Entered another Materials area 2529 | -8/Materials | Evolved 2 slots: Propulsion x1, Utility x1 2979 | -8/Materials | Lost 3 parts (1n1u1w) 3104 | -8/Materials | Discovered new exit (range 3) 3298 | -8/Materials | Entered Factory 3298 | -7/Factory | Evolved 2 slots: Power x1, Utility x1 3318 | -7/Factory | Lost 3 parts (1n1u1w) 3330 | -7/Factory | Build established: Scavenger-Mutant 3736 | -7/Factory | Build established: Mutant 4228 | -7/Factory | Lost 7 parts (3p1n2u1w) 4672 | -7/Factory | Build established: Scavenger-Mutant 4768 | -7/Factory | Garrison activated, responded to threat 5026 | -7/Factory | Core integrity fell below 50% 5032 | -7/Factory | Core integrity fell below 20% 5034 | -7/Factory | Destroyed by Y-54 Guardian with Gatling Laser Last Messages --------------- Plating. 05021_ K-01 Serf cleans the Matter Pump. 05021_ Particle Charger destroyed. 05022_ U-05 Engineer lays Concrete. 05022_ R-06 Scavenger collects Lgt. Ion Engine. 05023_ Mic. Nuclear Core destroyed. 05023_ U-05 Engineer lays Concrete. 05024_ R-06 Scavenger collects Imp. Heat Sink. 05024_ U-05 Engineer lays Concrete. 05025_ Imp. Medium Laser destroyed. 05025_ K-01 Serf cleans the Matter Pump. 05025_ U-05 Engineer lays Concrete. 05026_ K-01 Serf cleans the Garrison Access. 05027_ U-05 Engineer lays Concrete. 05027_ R-06 Scavenger collects Wheel. 05028_ K-01 Serf cleans the Matter Pump. 05028_ U-05 Engineer lays Concrete. 05031_ K-01 Serf cleans the Matter Pump. 05031_ U-05 Engineer lays Concrete. 05034_ Rocket Launcher destroyed. Map ----- +----------------------------------------------------+ | ???????????????????##??#?##?#######?#?###?#?###??? | | ???????????????????????#####????###?####### ? ?? | | ??????????????????##?#???#?################ ??? ?? | | ?????????????????#?##?####### ## ? | | ?????????????????? / """ ## ? | | ???????????????????##???##### "Y ## | | ??????????????????##????##?## """ ## ??"?"" | | ??????????????????#?###? #?# "" ##?""" "" | | ??????????????????? ?### "" ## """ "" | | ??????????????????#?### ### """ ## ? | | ????????????????????#### #### """ ## """ "" | | ???????????????????##??# ??## """ ## ""? "" | | ????????????????????#?## #### ! ##?""" ?? | | ???????????????????##?## #### ## | | ?????????????????"?##### ?### ## | | ?????????????????? ##### ##########/#+##########+# | | ?????????????????####### u | | ????????????????? ?###### k u | | ????????????????? ##?### ""r " | | ???????????????? ?? #??### "" "" | | ??????????????????? ###### """ G | | ?????????????????? ?#??## "" ###+######## | | ????????????????? ? ###### g"" " # ? | | ??????????????????? ??##?# " # """? | | ????????????????????######gY""" # """ | | ????????????????????+ @ Y # ?""" | | ???????????????? ? ?###### """ """ #??? ? "? | | ???????????????? ???##### g""" """ # ? ? "?? | | ?????????????????????????# """ """ # ? ?? | | ??????????????????#??????# k ##?#?#?##??# | | ???????????????????? ?? """ """ ? ? ?? ? | | ???????????????????? ?? """ """ ? ?????? | | ??????????????????????? """ """ ?? ? ?? ? | | ?????????????????????? ?? ??????? | | ????????????????????? ??? ?? ??????? | | ?????????????????????#+####### ###????#??#???????? | | ?????????????????????????????? ##????????????????? | | ????????????????????????? ???? ??????????????????? | | ?????????????????????????????? ????#?????????????? | | ?????????????????????????????? ??????????????????? | | ?????????????????????????????? ??????????????????? | | ?????????????????????????????????????????????????? | | ?????????????????????????????????????????????????? | | ?????????????????????????????????????????????????? | | ?????????????????????????????????????????????????? | | ?????????????????????????????????????????????????? | | ?????????????????????????????????????????????????? | | ?????????????????????????????????????????????????? | | ?????????????????????????????????????????????????? | | ?????????????????????????????????????????????????? | +----------------------------------------------------+ Best States ------------- Heat Dissipation 48 Energy Generation 24 Energy Capacity 415 Matter Stores 300 Matter Capacity 300 Sight Range 16 Terrain Scan Range 16 Terrain Scan Density 85 Armor Coverage 375 Power Shielding 66 Evasion (%) 40 Targeting Accuracy 6 Recoil Reduction 3 Item Schematics ----------------- Grenade Launcher | -9/Materials | Scanalyzed Robot Schematics ------------------ None Fabricated ------------ Nothing Alien Tech Used ----------------- None Achievements -------------- None Challenges ------------ None Game ------ Seed ArmorThrusterBrace Manual? 0 Play Time 00:36:28 Cumulative 19.7 hours Start 2024.07.05 @ 22:03:39 End 2024.07.05 @ 22:38:59 Sessions 1 Manual Loads 0 Difficulty Rogue Special Mode None Game No. 46 Rogue 46 Adventurer 0 Explorer 0 Win Type - Total 0 Types 0/0/0/0/0/0/0/0/0 Lore% 19 Gallery% 24 Achievement% 18 Wizard Run 0 Options --------- Layout 1 ASCII 0 Keyboard 1 Movement Arrows Keybinds 0 Fullscreen 1 Font 24/Smallcaps Map View 50x35 Zoom Use 0% Tactical HUD 1 Map Filters NONE Filters NONE Steam 1 RUN: 2be1a4be-98ce-42c2-a031-82c0c7003573